[Event "Titled Tuesday Blitz July 05 Early 2022"]
[White "Fedoseev, Vladimir"]
[Black "Tari, Aryan"]
[WhiteFideId "24130737"]
[BlackFideId "1510045"]
[WhiteElo "2726"]
[BlackElo "2612"]
[Result "0-1"]
[Round "06"]
[TimeControl "180+1"]
[Date "2022.07.05"]
[WhiteClock "0:00:04"]
[BlackClock "0:00:13"]

1. d4 {[%clk 0:02:12]}  d5 {[%clk 0:02:55]} 2. c4 {[%clk 0:02:11]}  e6 {[%clk 0:02:55]} 3. Nf3 {[%clk 0:02:12]}  Nf6 {[%clk 0:02:55]} 4. Bg5 {[%clk 0:02:10]}  Be7 {[%clk 0:02:40]} 5. e3 {[%clk 0:02:09]}  O-O {[%clk 0:02:39]} 6. cxd5 {[%clk 0:02:06]}  Nxd5 {[%clk 0:02:26]} 7. Bxe7 {[%clk 0:02:05]}  Qxe7 {[%clk 0:02:27]} 8. Bd3 {[%clk 0:01:49]}  c5 {[%clk 0:02:26]} 9. Nc3 {[%clk 0:01:46]}  cxd4 {[%clk 0:02:02]} 10. Nxd5 {[%clk 0:01:44]}  exd5 {[%clk 0:02:03]} 11. Nxd4 {[%clk 0:01:43]}  Nc6 {[%clk 0:02:02]} 12. Nxc6 {[%clk 0:01:41]}  bxc6 {[%clk 0:02:03]} 13. O-O {[%clk 0:01:36]}  Rb8 {[%clk 0:02:02]} 14. Qc2 {[%clk 0:01:33]}  h6 {[%clk 0:01:34]} 15. Rfc1 {[%clk 0:01:18]}  Bd7 {[%clk 0:01:31]} 16. b3 {[%clk 0:01:18]}  Qb4 {[%clk 0:01:18]} 17. Rab1 {[%clk 0:01:06]}  a5 {[%clk 0:01:18]} 18. h3 {[%clk 0:01:06]}  Rfc8 {[%clk 0:01:16]} 19. Qd1 {[%clk 0:01:01]}  c5 {[%clk 0:01:12]} 20. Ba6 {[%clk 0:00:57]}  Rd8 {[%clk 0:01:09]} 21. Qc2 {[%clk 0:00:37]}  Qb6 {[%clk 0:01:09]} 22. Be2 {[%clk 0:00:36]}  Rdc8 {[%clk 0:01:08]} 23. Bf3 {[%clk 0:00:35]}  Be6 {[%clk 0:01:07]} 24. Rd1 {[%clk 0:00:32]}  d4 {[%clk 0:01:07]} 25. exd4 {[%clk 0:00:23]}  cxd4 {[%clk 0:01:08]} 26. Qd3 {[%clk 0:00:23]}  Rd8 {[%clk 0:01:04]} 27. Rbc1 {[%clk 0:00:23]}  Qb4 {[%clk 0:00:55]} 28. Bc6 {[%clk 0:00:20]}  Rbc8 {[%clk 0:00:51]} 29. Rc2 {[%clk 0:00:21]}  g6 {[%clk 0:00:46]} 30. g4 {[%clk 0:00:18]}  Qd6 {[%clk 0:00:40]} 31. Rdc1 {[%clk 0:00:17]}  Qf4 {[%clk 0:00:41]} 32. Bg2 {[%clk 0:00:14]}  Rxc2 {[%clk 0:00:37]} 33. Rxc2 {[%clk 0:00:15]}  h5 {[%clk 0:00:37]} 34. gxh5 {[%clk 0:00:10]}  Bf5 {[%clk 0:00:38]} 35. Qd2 {[%clk 0:00:11]}  Qh4 {[%clk 0:00:28]} 36. Rc5 {[%clk 0:00:10]}  Qxh5 {[%clk 0:00:24]} 37. Qxa5 {[%clk 0:00:10]}  Qh4 {[%clk 0:00:17]} 38. Rd5 {[%clk 0:00:07]}  Re8 {[%clk 0:00:18]} 39. Qd2 {[%clk 0:00:02]}  d3 {[%clk 0:00:17]} 40. Bf1 {[%clk 0:00:03]}  Be4 {[%clk 0:00:07]} 41. Rd4 {[%clk 0:00:03]}  Re5 {[%clk 0:00:07]} 42. f4 {[%clk 0:00:03]}  Qg3+ {[%clk 0:00:05]} 43. Bg2 {[%clk 0:00:03]}  Bxg2 {[%clk 0:00:05]} 44. fxe5 {[%clk 0:00:03]}  Bf3+ {[%clk 0:00:05]} 45. Kf1 {[%clk 0:00:02]}  Be2+ {[%clk 0:00:06]} 46. Qxe2 {[%clk 0:00:03]}  dxe2+ {[%clk 0:00:07]} 47. Kxe2 {[%clk 0:00:04]}  Qxe5+ {[%clk 0:00:08]} 48. Kd3 {[%clk 0:00:04]}  Qg3+ {[%clk 0:00:08]} 49. Kc4 {[%clk 0:00:05]}  Qxh3 {[%clk 0:00:08]} 50. a4 {[%clk 0:00:06]}  Qf1+ {[%clk 0:00:08]} 51. Kb4 {[%clk 0:00:06]}  Qe1+ {[%clk 0:00:08]} 52. Kc4 {[%clk 0:00:05]}  Qe2+ {[%clk 0:00:09]} 53. Kb4 {[%clk 0:00:05]}  Qe7+ {[%clk 0:00:08]} 54. Kc4 {[%clk 0:00:05]}  Qc7+ {[%clk 0:00:09]} 55. Kb5 {[%clk 0:00:05]}  Qb7+ {[%clk 0:00:09]} 56. Kc4 {[%clk 0:00:05]}  Qc6+ {[%clk 0:00:09]} 57. Kb4 {[%clk 0:00:06]}  Qb6+ {[%clk 0:00:10]} 58. Kc4 {[%clk 0:00:06]}  g5 {[%clk 0:00:11]} 59. b4 {[%clk 0:00:06]}  Qc6+ {[%clk 0:00:11]} 60. Kb3 {[%clk 0:00:06]}  Qf3+ {[%clk 0:00:12]} 61. Kc4 {[%clk 0:00:06]}  g4 {[%clk 0:00:12]} 62. b5 {[%clk 0:00:04]}  g3 {[%clk 0:00:13]} 0-1


[Site "https://www.chess.com"]

[Event "Titled Tuesday Blitz July 05 Early 2022"]
[White "Grandelius, Nils"]
[Black "Barp, Alberto"]
[WhiteFideId "1710400"]
[BlackFideId "872555"]
[WhiteElo "2617"]
[BlackElo "2229"]
[Result "0-1"]
[Round "06"]
[TimeControl "180+1"]
[Date "2022.07.05"]
[WhiteClock "0:00:05"]
[BlackClock "0:00:13"]

1. g3 {[%clk 0:03:00]}  d5 {[%clk 0:02:41]} 2. Nf3 {[%clk 0:02:59]}  Nf6 {[%clk 0:02:39]} 3. Bg2 {[%clk 0:03:00]}  e6 {[%clk 0:02:38]} 4. O-O {[%clk 0:02:57]}  c5 {[%clk 0:02:39]} 5. c4 {[%clk 0:02:57]}  Nc6 {[%clk 0:02:40]} 6. cxd5 {[%clk 0:02:57]}  exd5 {[%clk 0:02:41]} 7. d4 {[%clk 0:02:56]}  Be7 {[%clk 0:02:41]} 8. dxc5 {[%clk 0:02:49]}  Bxc5 {[%clk 0:02:41]} 9. a3 {[%clk 0:02:49]}  a5 {[%clk 0:02:37]} 10. Nc3 {[%clk 0:02:47]}  O-O {[%clk 0:02:37]} 11. Bg5 {[%clk 0:02:47]}  d4 {[%clk 0:02:35]} 12. Bxf6 {[%clk 0:02:46]}  Qxf6 {[%clk 0:02:34]} 13. Nd5 {[%clk 0:02:47]}  Qd8 {[%clk 0:02:34]} 14. Nd2 {[%clk 0:02:46]}  Re8 {[%clk 0:02:28]} 15. Rc1 {[%clk 0:02:45]}  Bf8 {[%clk 0:02:27]} 16. Re1 {[%clk 0:02:33]}  Be6 {[%clk 0:02:15]} 17. Nf4 {[%clk 0:02:32]}  Bf5 {[%clk 0:02:11]} 18. Qb3 {[%clk 0:02:29]}  Rb8 {[%clk 0:02:08]} 19. Nd3 {[%clk 0:02:09]}  h5 {[%clk 0:02:01]} 20. Qb5 {[%clk 0:01:56]}  g6 {[%clk 0:02:00]} 21. Nc4 {[%clk 0:01:46]}  Bh6 {[%clk 0:01:54]} 22. Rcd1 {[%clk 0:01:43]}  h4 {[%clk 0:01:49]} 23. Qd5 {[%clk 0:01:07]}  Qf6 {[%clk 0:01:22]} 24. Qf3 {[%clk 0:01:06]}  Qe6 {[%clk 0:01:16]} 25. Qd5 {[%clk 0:01:06]}  Qf6 {[%clk 0:01:15]} 26. Qf3 {[%clk 0:00:56]}  Qe6 {[%clk 0:01:15]} 27. b3 {[%clk 0:00:57]}  Rbc8 {[%clk 0:01:02]} 28. gxh4 {[%clk 0:00:38]}  a4 {[%clk 0:00:47]} 29. Nb6 {[%clk 0:00:35]}  Ne5 {[%clk 0:00:37]} 30. Nxe5 {[%clk 0:00:20]}  Qxb6 {[%clk 0:00:36]} 31. Ng4 {[%clk 0:00:18]}  Bxg4 {[%clk 0:00:33]} 32. Qxg4 {[%clk 0:00:19]}  axb3 {[%clk 0:00:33]} 33. h5 {[%clk 0:00:20]}  b2 {[%clk 0:00:30]} 34. hxg6 {[%clk 0:00:20]}  Qxg6 {[%clk 0:00:30]} 35. Qxg6+ {[%clk 0:00:16]}  fxg6 {[%clk 0:00:31]} 36. Rb1 {[%clk 0:00:16]}  Rc1 {[%clk 0:00:28]} 37. Bd5+ {[%clk 0:00:14]}  Kg7 {[%clk 0:00:27]} 38. Kg2 {[%clk 0:00:14]}  Rxe1 {[%clk 0:00:26]} 39. Rxe1 {[%clk 0:00:15]}  Rxe2 {[%clk 0:00:26]} 40. Rb1 {[%clk 0:00:10]}  Be3 {[%clk 0:00:26]} 41. Kf3 {[%clk 0:00:09]}  Rxf2+ {[%clk 0:00:26]} 42. Ke4 {[%clk 0:00:10]}  b6 {[%clk 0:00:26]} 43. h3 {[%clk 0:00:08]}  Kf6 {[%clk 0:00:25]} 44. Ba2 {[%clk 0:00:07]}  Rf4+ {[%clk 0:00:21]} 45. Kd3 {[%clk 0:00:07]}  Bc1 {[%clk 0:00:21]} 46. Kc4 {[%clk 0:00:05]}  Ke5 {[%clk 0:00:21]} 47. Bb3 {[%clk 0:00:05]}  Rf3 {[%clk 0:00:21]} 48. Bd1 {[%clk 0:00:04]}  Rc3+ {[%clk 0:00:20]} 49. Kb5 {[%clk 0:00:05]}  Rd3 {[%clk 0:00:19]} 50. Bc2 {[%clk 0:00:05]}  Rxa3 {[%clk 0:00:19]} 51. Bxg6 {[%clk 0:00:05]}  d3 {[%clk 0:00:13]} 52. h4 {[%clk 0:00:05]}  d2 {[%clk 0:00:12]} 53. Bc2 {[%clk 0:00:06]}  Ra1 {[%clk 0:00:12]} 54. Rxb2 {[%clk 0:00:02]}  Bxb2 {[%clk 0:00:12]} 55. h5 {[%clk 0:00:03]}  d1=Q {[%clk 0:00:12]} 56. Bxd1 {[%clk 0:00:02]}  Rxd1 {[%clk 0:00:12]} 57. h6 {[%clk 0:00:03]}  Rh1 {[%clk 0:00:13]} 58. Kc4 {[%clk 0:00:04]}  Rxh6 {[%clk 0:00:13]} 59. Kb3 {[%clk 0:00:05]}  Rd6 {[%clk 0:00:13]} 0-1


[Site "https://www.chess.com"]

[Event "Titled Tuesday Blitz July 05 Early 2022"]
[White "Hansen, Eric"]
[Black "Kovalev, Vladislav"]
[WhiteFideId "2606771"]
[BlackFideId "13504398"]
[WhiteElo "2568"]
[BlackElo "2530"]
[Result "0-1"]
[Round "06"]
[TimeControl "180+1"]
[Date "2022.07.05"]
[WhiteClock "0:00:02"]
[BlackClock "0:00:08"]

1. e4 {[%clk 0:03:00]}  e5 {[%clk 0:03:00]} 2. Nf3 {[%clk 0:02:58]}  Nc6 {[%clk 0:03:01]} 3. Bb5 {[%clk 0:02:56]}  a6 {[%clk 0:03:01]} 4. Ba4 {[%clk 0:02:56]}  Nf6 {[%clk 0:03:02]} 5. O-O {[%clk 0:02:56]}  Be7 {[%clk 0:03:02]} 6. Re1 {[%clk 0:02:56]}  b5 {[%clk 0:03:03]} 7. Bb3 {[%clk 0:02:57]}  d6 {[%clk 0:03:03]} 8. c3 {[%clk 0:02:57]}  O-O {[%clk 0:03:04]} 9. h3 {[%clk 0:02:57]}  Nb8 {[%clk 0:03:05]} 10. d4 {[%clk 0:02:57]}  Nbd7 {[%clk 0:03:05]} 11. Nbd2 {[%clk 0:02:53]}  c5 {[%clk 0:03:06]} 12. Nf1 {[%clk 0:02:38]}  Re8 {[%clk 0:03:05]} 13. Ng3 {[%clk 0:02:38]}  Bf8 {[%clk 0:03:06]} 14. d5 {[%clk 0:02:13]}  c4 {[%clk 0:03:06]} 15. Bc2 {[%clk 0:02:14]}  Qc7 {[%clk 0:03:03]} 16. a4 {[%clk 0:02:10]}  Bb7 {[%clk 0:02:57]} 17. Be3 {[%clk 0:02:06]}  Reb8 {[%clk 0:02:57]} 18. axb5 {[%clk 0:02:01]}  axb5 {[%clk 0:02:58]} 19. Qd2 {[%clk 0:01:55]}  Bc8 {[%clk 0:02:58]} 20. Nh4 {[%clk 0:01:46]}  Nc5 {[%clk 0:02:56]} 21. Bg5 {[%clk 0:01:40]}  Ne8 {[%clk 0:02:52]} 22. Rxa8 {[%clk 0:01:36]}  Rxa8 {[%clk 0:02:52]} 23. Nhf5 {[%clk 0:01:37]}  f6 {[%clk 0:02:40]} 24. Be3 {[%clk 0:01:36]}  g6 {[%clk 0:02:40]} 25. Nh6+ {[%clk 0:01:33]}  Kh8 {[%clk 0:02:39]} 26. Qe2 {[%clk 0:01:26]}  Ra2 {[%clk 0:02:34]} 27. Bb1 {[%clk 0:01:02]}  Ra1 {[%clk 0:02:35]} 28. Ng4 {[%clk 0:01:03]}  Qe7 {[%clk 0:02:01]} 29. Rf1 {[%clk 0:00:57]}  Bg7 {[%clk 0:01:18]} 30. Nh2 {[%clk 0:00:54]}  Qf8 {[%clk 0:01:16]} 31. f4 {[%clk 0:00:49]}  exf4 {[%clk 0:01:16]} 32. Bxf4 {[%clk 0:00:47]}  Bh6 {[%clk 0:01:16]} 33. Bxh6 {[%clk 0:00:43]}  Qxh6 {[%clk 0:01:17]} 34. Qf2 {[%clk 0:00:42]}  Qg7 {[%clk 0:01:12]} 35. Nf3 {[%clk 0:00:42]}  Qe7 {[%clk 0:01:12]} 36. Re1 {[%clk 0:00:41]}  Bd7 {[%clk 0:01:11]} 37. Nd4 {[%clk 0:00:40]}  Kg8 {[%clk 0:00:46]} 38. Nf3 {[%clk 0:00:33]}  Nc7 {[%clk 0:00:43]} 39. Bc2 {[%clk 0:00:29]}  Rxe1+ {[%clk 0:00:43]} 40. Nxe1 {[%clk 0:00:27]}  Be8 {[%clk 0:00:42]} 41. Nf3 {[%clk 0:00:27]}  Bd7 {[%clk 0:00:39]} 42. Qd4 {[%clk 0:00:26]}  Ne8 {[%clk 0:00:38]} 43. Qd1 {[%clk 0:00:23]}  Qd8 {[%clk 0:00:37]} 44. Qa1 {[%clk 0:00:23]}  Qb6 {[%clk 0:00:38]} 45. Kh1 {[%clk 0:00:23]}  Nc7 {[%clk 0:00:37]} 46. Qc1 {[%clk 0:00:21]}  Kg7 {[%clk 0:00:35]} 47. Nd4 {[%clk 0:00:20]}  Ne8 {[%clk 0:00:32]} 48. Qa1 {[%clk 0:00:17]}  Qa6 {[%clk 0:00:32]} 49. Qxa6 {[%clk 0:00:14]}  Nxa6 {[%clk 0:00:33]} 50. Kg1 {[%clk 0:00:15]}  Nc5 {[%clk 0:00:33]} 51. Kf2 {[%clk 0:00:15]}  Kf8 {[%clk 0:00:33]} 52. Ke3 {[%clk 0:00:16]}  Ke7 {[%clk 0:00:34]} 53. Nf3 {[%clk 0:00:15]}  Nc7 {[%clk 0:00:32]} 54. Kd4 {[%clk 0:00:15]}  Na8 {[%clk 0:00:31]} 55. Nf1 {[%clk 0:00:10]}  Nb6 {[%clk 0:00:31]} 56. Ne3 {[%clk 0:00:09]}  Bc8 {[%clk 0:00:24]} 57. Nd2 {[%clk 0:00:07]}  Ba6 {[%clk 0:00:25]} 58. b4 {[%clk 0:00:05]}  Ncd7 {[%clk 0:00:17]} 59. Ng4 {[%clk 0:00:03]}  Ne5 {[%clk 0:00:17]} 60. Nf2 {[%clk 0:00:03]}  Nbd7 {[%clk 0:00:14]} 61. Ke3 {[%clk 0:00:03]}  Nf8 {[%clk 0:00:14]} 62. Nf3 {[%clk 0:00:04]}  Bc8 {[%clk 0:00:12]} 63. Nd4 {[%clk 0:00:04]}  Bd7 {[%clk 0:00:13]} 64. Bd1 {[%clk 0:00:04]}  h5 {[%clk 0:00:13]} 65. Be2 {[%clk 0:00:05]}  Nh7 {[%clk 0:00:13]} 66. Nd1 {[%clk 0:00:04]}  Ng5 {[%clk 0:00:14]} 67. Nf2 {[%clk 0:00:04]}  Nh7 {[%clk 0:00:13]} 68. Nd1 {[%clk 0:00:05]}  h4 {[%clk 0:00:09]} 69. Nf2 {[%clk 0:00:02]}  f5 {[%clk 0:00:08]} 70. exf5 {[%clk 0:00:02]}  gxf5 {[%clk 0:00:09]} 71. Nf3 {[%clk 0:00:02]}  Nxf3 {[%clk 0:00:08]} 72. Bxf3 {[%clk 0:00:02]}  Ng5 {[%clk 0:00:08]} 73. Kf4 {[%clk 0:00:02]}  Kf6 {[%clk 0:00:08]} 74. Nd1 {[%clk 0:00:02]}  Nf7 {[%clk 0:00:07]} 75. Ne3 {[%clk 0:00:02]}  Ne5 {[%clk 0:00:08]} 76. Be2 {[%clk 0:00:03]}  Ng6+ {[%clk 0:00:08]} 77. Kf3 {[%clk 0:00:03]}  Ke5 {[%clk 0:00:07]} 78. Bd1 {[%clk 0:00:03]}  Bc8 {[%clk 0:00:06]} 79. Bc2 {[%clk 0:00:03]}  Ne7 {[%clk 0:00:06]} 80. Bb1 {[%clk 0:00:02]}  Bb7 {[%clk 0:00:07]} 81. Bc2 {[%clk 0:00:02]}  Nxd5 {[%clk 0:00:07]} 82. Nxd5 {[%clk 0:00:02]}  Bxd5+ {[%clk 0:00:08]} 83. Kf2 {[%clk 0:00:02]}  f4 {[%clk 0:00:07]} 84. Bd1 {[%clk 0:00:02]}  Be4 {[%clk 0:00:07]} 85. Be2 {[%clk 0:00:02]}  d5 {[%clk 0:00:08]} 86. Bg4 {[%clk 0:00:02]}  d4 {[%clk 0:00:08]} 87. cxd4+ {[%clk 0:00:02]}  Kxd4 {[%clk 0:00:09]} 88. Ke2 {[%clk 0:00:02]}  Kc3 {[%clk 0:00:09]} 89. Bf3 {[%clk 0:00:02]}  Bd3+ {[%clk 0:00:08]} 0-1


[Site "https://www.chess.com"]

[Event "Titled Tuesday Blitz July 05 Early 2022"]
[White "Kamsky, Gata"]
[Black "Nakamura, Hikaru"]
[WhiteFideId "2000024"]
[BlackFideId "2016192"]
[WhiteElo "2645"]
[BlackElo "2850"]
[Result "1/2-1/2"]
[Round "06"]
[TimeControl "180+1"]
[Date "2022.07.05"]
[WhiteClock "0:01:15"]
[BlackClock "0:00:34"]

1. d4 {[%clk 0:02:55]}  f5 {[%clk 0:02:57]} 2. Nc3 {[%clk 0:02:52]}  d5 {[%clk 0:02:44]} 3. Bf4 {[%clk 0:02:44]}  e6 {[%clk 0:02:40]} 4. e3 {[%clk 0:02:43]}  Bd6 {[%clk 0:02:38]} 5. Nf3 {[%clk 0:02:40]}  a6 {[%clk 0:02:37]} 6. Bd3 {[%clk 0:02:16]}  Nf6 {[%clk 0:02:31]} 7. Ne2 {[%clk 0:02:15]}  O-O {[%clk 0:02:10]} 8. c4 {[%clk 0:02:14]}  Bb4+ {[%clk 0:02:05]} 9. Nc3 {[%clk 0:02:12]}  c6 {[%clk 0:01:59]} 10. a3 {[%clk 0:02:09]}  Bd6 {[%clk 0:01:45]} 11. Bxd6 {[%clk 0:02:08]}  Qxd6 {[%clk 0:01:45]} 12. c5 {[%clk 0:02:08]}  Qc7 {[%clk 0:01:44]} 13. Ne5 {[%clk 0:02:08]}  Nbd7 {[%clk 0:01:43]} 14. Nxd7 {[%clk 0:02:05]}  Bxd7 {[%clk 0:01:40]} 15. f4 {[%clk 0:02:06]}  Rae8 {[%clk 0:01:36]} 16. Qd2 {[%clk 0:02:04]}  Kh8 {[%clk 0:01:35]} 17. O-O-O {[%clk 0:02:03]}  Re7 {[%clk 0:01:33]} 18. g3 {[%clk 0:01:57]}  Be8 {[%clk 0:01:31]} 19. Rdf1 {[%clk 0:01:47]}  Rg8 {[%clk 0:01:28]} 20. h4 {[%clk 0:01:45]}  b5 {[%clk 0:01:20]} 21. cxb6 {[%clk 0:01:45]}  Qxb6 {[%clk 0:01:20]} 22. Na4 {[%clk 0:01:44]}  Qa7 {[%clk 0:01:20]} 23. Kb1 {[%clk 0:01:40]}  Bh5 {[%clk 0:01:17]} 24. Ka1 {[%clk 0:01:33]}  a5 {[%clk 0:01:06]} 25. Rf2 {[%clk 0:01:24]}  Ra8 {[%clk 0:01:00]} 26. Rc1 {[%clk 0:01:24]}  Rc7 {[%clk 0:00:58]} 27. Qe1 {[%clk 0:01:21]}  Be8 {[%clk 0:00:53]} 28. Rfc2 {[%clk 0:01:21]}  Bd7 {[%clk 0:00:49]} 29. Qc3 {[%clk 0:01:19]}  Ng4 {[%clk 0:00:44]} 30. Qe1 {[%clk 0:01:17]}  Nf6 {[%clk 0:00:44]} 31. Qc3 {[%clk 0:01:16]}  Ng4 {[%clk 0:00:38]} 32. Qe1 {[%clk 0:01:15]}  Nf6 {[%clk 0:00:34]} 1/2-1/2


[Site "https://www.chess.com"]

[Event "Titled Tuesday Blitz July 05 Early 2022"]
[White "Lazavik, Denis"]
[Black "Kosteniuk, Alexandra"]
[WhiteFideId "13515110"]
[BlackFideId "4128125"]
[WhiteElo "2437"]
[BlackElo "2469"]
[Result "1/2-1/2"]
[Round "06"]
[TimeControl "180+1"]
[Date "2022.07.05"]
[WhiteClock "0:00:11"]
[BlackClock "0:00:17"]

1. d4 {[%clk 0:03:00]}  Nf6 {[%clk 0:02:59]} 2. c4 {[%clk 0:03:01]}  e6 {[%clk 0:02:59]} 3. Nf3 {[%clk 0:03:02]}  d5 {[%clk 0:02:59]} 4. g3 {[%clk 0:03:02]}  dxc4 {[%clk 0:02:58]} 5. Bg2 {[%clk 0:03:02]}  a6 {[%clk 0:02:59]} 6. O-O {[%clk 0:03:02]}  Nc6 {[%clk 0:02:59]} 7. e3 {[%clk 0:03:02]}  Bd7 {[%clk 0:02:56]} 8. Qe2 {[%clk 0:03:01]}  b5 {[%clk 0:02:53]} 9. b3 {[%clk 0:03:00]}  cxb3 {[%clk 0:02:43]} 10. axb3 {[%clk 0:03:01]}  Be7 {[%clk 0:02:43]} 11. Bb2 {[%clk 0:03:01]}  O-O {[%clk 0:02:38]} 12. Rc1 {[%clk 0:03:01]}  Nb4 {[%clk 0:02:37]} 13. Ne5 {[%clk 0:03:00]}  Rb8 {[%clk 0:02:37]} 14. Nd2 {[%clk 0:02:55]}  Rb6 {[%clk 0:02:36]} 15. h4 {[%clk 0:02:25]}  Be8 {[%clk 0:02:18]} 16. Ba3 {[%clk 0:02:15]}  a5 {[%clk 0:02:08]} 17. Ne4 {[%clk 0:02:01]}  Nxe4 {[%clk 0:02:04]} 18. Bxe4 {[%clk 0:02:02]}  f6 {[%clk 0:01:56]} 19. Nd3 {[%clk 0:01:56]}  f5 {[%clk 0:01:52]} 20. Bg2 {[%clk 0:01:52]}  Bd6 {[%clk 0:01:45]} 21. Nc5 {[%clk 0:01:46]}  Qe7 {[%clk 0:01:40]} 22. Bb2 {[%clk 0:01:36]}  Nc6 {[%clk 0:01:28]} 23. Nxe6 {[%clk 0:01:26]}  Qxe6 {[%clk 0:01:24]} 24. d5 {[%clk 0:01:27]}  Qf7 {[%clk 0:01:23]} 25. dxc6 {[%clk 0:01:24]}  Qxb3 {[%clk 0:01:22]} 26. Rxa5 {[%clk 0:01:17]}  Bf7 {[%clk 0:01:21]} 27. Bd4 {[%clk 0:01:16]}  Rbb8 {[%clk 0:01:19]} 28. h5 {[%clk 0:00:54]}  h6 {[%clk 0:01:09]} 29. Bf3 {[%clk 0:00:53]}  Be6 {[%clk 0:01:08]} 30. Rd1 {[%clk 0:00:44]}  b4 {[%clk 0:01:04]} 31. Be5 {[%clk 0:00:40]}  Rbd8 {[%clk 0:00:45]} 32. Bxd6 {[%clk 0:00:37]}  Rxd6 {[%clk 0:00:46]} 33. Rxd6 {[%clk 0:00:37]}  cxd6 {[%clk 0:00:47]} 34. Qd2 {[%clk 0:00:29]}  d5 {[%clk 0:00:22]} 35. Bxd5 {[%clk 0:00:22]}  Bxd5 {[%clk 0:00:21]} 36. Qxd5+ {[%clk 0:00:22]}  Qxd5 {[%clk 0:00:20]} 37. Rxd5 {[%clk 0:00:23]}  Rc8 {[%clk 0:00:20]} 38. Rxf5 {[%clk 0:00:21]}  Rxc6 {[%clk 0:00:19]} 39. Rb5 {[%clk 0:00:21]}  Rc4 {[%clk 0:00:19]} 40. Kg2 {[%clk 0:00:22]}  Kf7 {[%clk 0:00:20]} 41. f4 {[%clk 0:00:22]}  Kf6 {[%clk 0:00:17]} 42. Kf3 {[%clk 0:00:22]}  Ke6 {[%clk 0:00:17]} 43. e4 {[%clk 0:00:20]}  Kd6 {[%clk 0:00:16]} 44. e5+ {[%clk 0:00:11]}  Kc6 {[%clk 0:00:15]} 45. Rb8 {[%clk 0:00:12]}  Kc7 {[%clk 0:00:16]} 46. Rb5 {[%clk 0:00:12]}  Kc6 {[%clk 0:00:16]} 47. Rb8 {[%clk 0:00:12]}  Kc7 {[%clk 0:00:16]} 48. Rb5 {[%clk 0:00:11]}  Kc6 {[%clk 0:00:17]} 1/2-1/2


[Site "https://www.chess.com"]

[Event "Titled Tuesday Blitz July 05 Early 2022"]
[White "Livaic, Leon"]
[Black "Oparin, Grigoriy"]
[WhiteFideId "14531534"]
[BlackFideId "24125890"]
[WhiteElo "2540"]
[BlackElo "2639"]
[Result "0-1"]
[Round "06"]
[TimeControl "180+1"]
[Date "2022.07.05"]
[WhiteClock "0:00:03"]
[BlackClock "0:00:18"]

1. b3 {[%clk 0:03:00]}  Nf6 {[%clk 0:02:55]} 2. Bb2 {[%clk 0:03:01]}  g6 {[%clk 0:02:55]} 3. g3 {[%clk 0:03:00]}  Bg7 {[%clk 0:02:56]} 4. Bg2 {[%clk 0:03:01]}  O-O {[%clk 0:02:56]} 5. Nf3 {[%clk 0:03:01]}  b6 {[%clk 0:02:55]} 6. c4 {[%clk 0:03:01]}  Bb7 {[%clk 0:02:54]} 7. O-O {[%clk 0:03:02]}  c5 {[%clk 0:02:55]} 8. Nc3 {[%clk 0:03:01]}  d5 {[%clk 0:02:52]} 9. Nxd5 {[%clk 0:03:00]}  Nxd5 {[%clk 0:02:52]} 10. Bxg7 {[%clk 0:03:01]}  Kxg7 {[%clk 0:02:52]} 11. cxd5 {[%clk 0:03:01]}  Qxd5 {[%clk 0:02:48]} 12. d4 {[%clk 0:03:00]}  Na6 {[%clk 0:02:48]} 13. dxc5 {[%clk 0:02:57]}  Nxc5 {[%clk 0:02:43]} 14. Qxd5 {[%clk 0:02:57]}  Bxd5 {[%clk 0:02:44]} 15. Rfd1 {[%clk 0:02:57]}  Rfd8 {[%clk 0:02:37]} 16. Ne5 {[%clk 0:02:56]}  Bxg2 {[%clk 0:02:35]} 17. Kxg2 {[%clk 0:02:56]}  Rac8 {[%clk 0:02:30]} 18. Rac1 {[%clk 0:02:39]}  Rxd1 {[%clk 0:02:27]} 19. Rxd1 {[%clk 0:02:39]}  f6 {[%clk 0:02:27]} 20. Nf3 {[%clk 0:02:25]}  Kf7 {[%clk 0:02:23]} 21. Rc1 {[%clk 0:02:25]}  Rd8 {[%clk 0:02:21]} 22. b4 {[%clk 0:02:24]}  Ne6 {[%clk 0:02:14]} 23. e3 {[%clk 0:02:23]}  Rd3 {[%clk 0:02:09]} 24. Ne1 {[%clk 0:02:11]}  Rd2 {[%clk 0:01:38]} 25. a3 {[%clk 0:01:58]}  Ra2 {[%clk 0:01:23]} 26. Nc2 {[%clk 0:01:48]}  Ng5 {[%clk 0:01:15]} 27. f3 {[%clk 0:01:23]}  Ke8 {[%clk 0:01:14]} 28. Kf2 {[%clk 0:01:22]}  Nf7 {[%clk 0:01:14]} 29. Ke2 {[%clk 0:01:12]}  Ne5 {[%clk 0:01:13]} 30. Kd2 {[%clk 0:00:44]}  Nc4+ {[%clk 0:00:45]} 31. Kc3 {[%clk 0:00:44]}  Nxa3 {[%clk 0:00:45]} 32. Nd4 {[%clk 0:00:44]}  Rxh2 {[%clk 0:00:45]} 33. Kb3 {[%clk 0:00:44]}  e5 {[%clk 0:00:45]} 34. Ne6 {[%clk 0:00:21]}  Nb5 {[%clk 0:00:45]} 35. Kc4 {[%clk 0:00:21]}  Ke7 {[%clk 0:00:40]} 36. Kxb5 {[%clk 0:00:14]}  Kxe6 {[%clk 0:00:40]} 37. Rc7 {[%clk 0:00:13]}  Ra2 {[%clk 0:00:35]} 38. Rxh7 {[%clk 0:00:11]}  Ra3 {[%clk 0:00:35]} 39. e4 {[%clk 0:00:11]}  a5 {[%clk 0:00:36]} 40. bxa5 {[%clk 0:00:10]}  bxa5 {[%clk 0:00:36]} 41. Ra7 {[%clk 0:00:05]}  Rxf3 {[%clk 0:00:34]} 42. Ra6+ {[%clk 0:00:06]}  Kf7 {[%clk 0:00:35]} 43. Ra7+ {[%clk 0:00:06]}  Kf8 {[%clk 0:00:24]} 44. Kc5 {[%clk 0:00:07]}  Rxg3 {[%clk 0:00:20]} 45. Kd5 {[%clk 0:00:07]}  Rf3 {[%clk 0:00:20]} 46. Ke6 {[%clk 0:00:06]}  g5 {[%clk 0:00:20]} 47. Rxa5 {[%clk 0:00:04]}  Kg7 {[%clk 0:00:20]} 48. Ra7+ {[%clk 0:00:03]}  Kg6 {[%clk 0:00:21]} 49. Ra8 {[%clk 0:00:04]}  g4 {[%clk 0:00:18]} 50. Rh8 {[%clk 0:00:03]}  Kg5 {[%clk 0:00:18]} 51. Rg8+ {[%clk 0:00:03]}  Kh4 {[%clk 0:00:17]} 52. Rh8+ {[%clk 0:00:03]}  Kg3 {[%clk 0:00:18]} 0-1


[Site "https://www.chess.com"]